fUST/lending_fUST_20240704
["ID","MTS","AMOUNT","RATE_DAILY","PERIOD"]
[331060812,1720047039031,-500.0,0.0001449,2]
[331060813,1720047039041,-528.6361372,0.0001449,2]
[331060814,1720047039051,-500.0,0.0001449,2]
[331060815,1720047039061,-500.0,0.0001449,2]
[331060816,1720047039072,-500.0,0.0001449,2]
[331060817,1720047039082,-591.6073151,0.0001449,2]
[331060818,1720047039092,-500.0,0.0001449,2]
[331060819,1720047039105,-500.0,0.0001449,2]
[331060820,1720047039115,-504.92118705,0.0001449,2]
[331060821,1720047039125,-500.0,0.0001449,2]
[331060822,1720047039135,-500.0,0.0001449,2]
[331060823,1720047039146,-500.0,0.0001449,2]
[331060824,1720047039156,-500.0,0.0001449,2]
[331060825,1720047039167,-500.0,0.0001449,2]
[331060826,1720047039176,-500.0,0.0001449,2]
[331060827,1720047039186,-500.0,0.0001449,2]
[331060828,1720047039196,-500.0,0.0001449,2]
[331060829,1720047039206,-500.0,0.0001449,2]
[331060830,1720047039216,-500.0,0.0001449,2]
[331060831,1720047039225,-500.0,0.0001449,2]
[331060832,1720047039235,-500.0,0.0001449,2]
[331060833,1720047039353,-500.0,0.0001449,2]
[331060834,1720047039365,-500.0,0.0001449,2]
[331060835,1720047039374,-500.0,0.0001449,2]
[331060836,1720047039384,-538.93,0.0001449,2]
[331060837,1720047039394,-500.0,0.0001449,2]
[331060838,1720047039404,-500.0,0.0001449,2]
[331060839,1720047039413,-500.0,0.0001449,2]
[331060840,1720047039422,-500.0,0.0001449,2]
[331060841,1720047039432,-500.0,0.0001449,2]
[331060842,1720047039442,-500.0,0.0001449,2]
[331060843,1720047039452,-500.0,0.0001449,2]
[331060844,1720047039462,-501.4542537,0.0001449,2]
[331060845,1720047039471,-501.60535351,0.0001449,2]
[331060846,1720047039480,-500.0,0.0001449,2]
[331060847,1720047039490,-500.0,0.0001449,2]
[331060848,1720047039499,-500.0,0.0001449,2]
[331060849,1720047039509,-405769.530278,0.0001449,2]
[331060850,1720047039518,-174.99,0.0001449,2]
[331060851,1720047039527,-500.0,0.0001449,2]
[331060852,1720047039536,-500.0,0.0001449,2]
[331060853,1720047039545,-500.0,0.0001449,2]
[331060854,1720047039555,-520.99671637,0.0001449,2]
[331060855,1720047039564,-500.0,0.0001449,2]
[331060856,1720047039574,-500.0,0.0001449,2]
[331060857,1720047039583,-500.0,0.0001449,2]
[331060858,1720047039593,-503.84569729,0.0001449,2]
[331060859,1720047039603,-500.0,0.0001449,2]
[331060860,1720047039612,-587.21458415,0.0001449,2]
[331060861,1720047039621,-500.0,0.0001449,2]
[331060862,1720047039631,-500.0,0.0001449,2]
[331060863,1720047039640,-500.0,0.0001449,2]
[331060864,1720047039651,-500.0,0.0001449,2]
[331060865,1720047039661,-500.0,0.0001449,2]
[331060866,1720047039675,-500.0,0.0001449,2]
[331060867,1720047039684,-500.0,0.0001449,2]
[331060868,1720047039695,-504.13476022,0.0001449,2]
[331060869,1720047039704,-500.0,0.0001449,2]
[331060870,1720047039713,-500.0,0.0001449,2]
[331060871,1720047039722,-500.0,0.0001449,2]
[331060872,1720047039731,-262.88700449,0.0001449,2]
[331060873,1720047039740,-500.0,0.0001449,2]
[331060874,1720047039750,-500.0,0.0001449,2]
[331060875,1720047039759,-500.0,0.0001449,2]
[331060876,1720047039768,-500.0,0.0001449,2]
[331060877,1720047039778,-502.46518827,0.0001449,2]
[331060878,1720047039788,-505.52693792,0.0001449,2]
[331060879,1720047039797,-500.0,0.0001449,2]
[331060880,1720047039807,-500.0,0.0001449,2]
[331060881,1720047039817,-291.16888287,0.0001449,2]
[331060882,1720047039827,-506.2557711,0.0001449,2]
[331060883,1720047039836,-500.0,0.0001449,2]
[331060884,1720047039846,-500.0,0.0001449,2]
[331060885,1720047039855,-500.0,0.0001449,2]
[331060886,1720047039865,-500.0,0.0001449,2]
[331060887,1720047039874,-500.0,0.0001449,2]
[331060888,1720047039883,-500.0,0.0001449,2]
[331060889,1720047039892,-500.0,0.0001449,2]
[331060890,1720047039902,-500.0,0.0001449,2]
[331060891,1720047039912,-500.0,0.0001449,2]
[331060892,1720047039921,-500.0,0.0001449,2]
[331060893,1720047039932,-240.995,0.00014498,2]
[331060894,1720047039942,-500.0,0.00014499,2]
[331060895,1720047039952,-500.0,0.00014499,2]
[331060896,1720047039961,-107.94892748,0.00014499,2]
[331060961,1720047046736,-500.0,0.00014489,2]
[331060963,1720047046745,-500.0,0.0001449,2]
[331060964,1720047046755,-500.0,0.0001449,2]
[331060965,1720047046764,-500.0,0.0001449,2]
[331060966,1720047046773,-500.0,0.0001449,2]
[331060967,1720047046783,-392.05107252,0.00014499,2]
[331060968,1720047046793,-500.0,0.00014499,2]
[331060969,1720047046803,-360.58,0.00014499,2]
[331060970,1720047046812,-592.56,0.00014499,2]
[331060971,1720047046821,-500.0,0.00014499,2]
[331060972,1720047046830,-1657.27,0.00014499,2]
[331060973,1720047046840,-1832.6,0.00014499,2]
[331060974,1720047046849,-1075.89,0.00014499,2]
[331060975,1720047046858,-500.0,0.00014499,2]
[331060976,1720047046868,-500.0,0.00014499,2]
[331060977,1720047046877,-500.0,0.00014499,2]
[331060978,1720047046886,-695.89,0.00014499,2]
[331060979,1720047046895,-3504.88,0.00014499,2]
[331060980,1720047046906,-500.0,0.00014499,2]
[331060981,1720047046916,-500.0,0.00014499,2]
[331060982,1720047046925,-500.0,0.00014499,2]
[331060983,1720047046937,-500.0,0.00014499,2]
[331060984,1720047046946,-500.0,0.00014499,2]
[331060985,1720047046955,-503.56944006,0.00014499,2]
[331060986,1720047046965,-500.0,0.00014499,2]
[331060987,1720047046974,-1215.96,0.00014499,2]
[331060988,1720047046984,-626.53,0.00014499,2]
[331060989,1720047046993,-3398.55,0.00014499,2]
[331060990,1720047047002,-135256.510093,0.00014499,2]
[331060991,1720047047012,-500.0,0.000145,2]
[331060992,1720047047021,-500.0,0.000145,2]
[331060993,1720047047030,-500.0,0.000145,2]
[331060994,1720047047043,-679.71,0.000145,2]
[331060995,1720047047052,-500.0,0.000145,2]
[331060996,1720047047062,-500.0,0.000145,2]
[331060997,1720047047071,-500.0,0.000145,2]
[331060998,1720047047081,-500.0,0.000145,2]
[331060999,1720047047090,-500.0,0.000145,2]
[331061000,1720047047103,-528.22,0.000145,2]
[331061001,1720047047121,-1160.81,0.000145,2]
[331061002,1720047047136,-500.0,0.000145,2]
[331061003,1720047047150,-500.0,0.000145,2]
[331061004,1720047047165,-283.01866954,0.000145,2]
[331061005,1720047047180,-500.0,0.000145,2]
[331061006,1720047047196,-500.0,0.000145,2]
[331061007,1720047047212,-500.0,0.000145,2]
[331061008,1720047047227,-500.0,0.000145,2]
[331061009,1720047047241,-500.0,0.000145,2]
[331061010,1720047047254,-500.0,0.000145,2]
[331061011,1720047047267,-500.0,0.000145,2]
[331061012,1720047047282,-500.0,0.000145,2]
[331061013,1720047047295,-500.0,0.000145,2]
[331061014,1720047047306,-168.30792774,0.000145,2]
[331061015,1720047047318,-500.0,0.000145,2]
[331061016,1720047047333,-500.0,0.000145,2]
[331061017,1720047047347,-500.0,0.000145,2]
[331061018,1720047047361,-500.0,0.000145,2]
[331061019,1720047047377,-621.2,0.000145,2]
[331061020,1720047047390,-960.96,0.000145,2]
[331061021,1720047047402,-500.0,0.000145,2]
[331061022,1720047047414,-332.49879046,0.000145,2]
[331061023,1720047047428,-501.57102348,0.000145,2]
[331061024,1720047047442,-500.0,0.000145,2]
[331061025,1720047047453,-500.0,0.000145,2]
[331061026,1720047047467,-500.0,0.000145,2]
[331061027,1720047047480,-500.0,0.000145,2]
[331061028,1720047047490,-506.53725978,0.000145,2]
[331061029,1720047047502,-500.0,0.000145,2]
[331061030,1720047047513,-500.0,0.000145,2]
[331061031,1720047047526,-500.0,0.000145,2]
[331061032,1720047047538,-500.0,0.000145,2]
[331061033,1720047047549,-500.0,0.000145,2]
[331061034,1720047047561,-500.0,0.000145,2]
[331061035,1720047047573,-500.0,0.000145,2]
[331061036,1720047047585,-7682.8,0.000145,2]
[331061037,1720047047597,-582.67,0.000145,2]
[331061038,1720047047609,-500.0,0.000145,2]
[331061039,1720047047620,-500.0,0.000145,2]
[331061040,1720047047633,-500.0,0.000145,2]
[331061041,1720047047644,-500.0,0.000145,2]
[331061042,1720047047658,-500.0,0.000145,2]
[331061043,1720047047671,-500.0,0.000145,2]
[331061044,1720047047684,-412.57971303,0.000145,2]
[331061045,1720047047695,-500.0,0.000145,2]
[331061046,1720047047707,-500.0,0.000145,2]
[331061047,1720047047719,-500.0,0.000145,2]
[331061048,1720047047731,-500.0,0.000145,2]
[331061049,1720047047743,-500.0,0.000145,2]
[331061050,1720047047755,-506.17867035,0.000145,2]
[331061051,1720047047768,-500.0,0.000145,2]
[331061052,1720047047780,-500.0,0.000145,2]
[331061053,1720047047793,-500.0,0.000145,2]
[331061054,1720047047806,-500.0,0.000145,2]
[331061055,1720047047818,-500.81615623,0.000145,2]
[331061056,1720047047830,-500.0,0.000145,2]
[331061057,1720047047842,-500.0,0.000145,2]
[331061058,1720047047855,-500.0,0.000145,2]
[331061059,1720047047867,-1663.18,0.000145,2]
[331061060,1720047047880,-500.0,0.000145,2]
[331061061,1720047047892,-504.66540187,0.000145,2]
[331061062,1720047047904,-500.0,0.000145,2]
[331061063,1720047047916,-500.0,0.000145,2]
[331061064,1720047047928,-500.0,0.000145,2]
[331061065,1720047047942,-500.0,0.000145,2]
[331061066,1720047047955,-577.77,0.000145,2]
[331061067,1720047047967,-500.0,0.000145,2]
[331061068,1720047047979,-500.0,0.000145,2]
[331061069,1720047047991,-500.0,0.000145,2]
[331061070,1720047048003,-500.0,0.000145,2]
[331061071,1720047048015,-500.0,0.000145,2]
[331061072,1720047048027,-500.0,0.000145,2]
[331061073,1720047048043,-500.0,0.000145,2]
[331061074,1720047048055,-500.0,0.000145,2]
[331061075,1720047048068,-500.0,0.000145,2]
[331061076,1720047048079,-500.0,0.000145,2]
[331061077,1720047048088,-500.0,0.000145,2]
[331061078,1720047048097,-500.0,0.000145,2]
[331061079,1720047048106,-500.0,0.000145,2]
[331061080,1720047048115,-500.0,0.000145,2]
[331061081,1720047048125,-500.0,0.000145,2]
[331061082,1720047048134,-500.0,0.000145,2]
[331061083,1720047048296,-500.0,0.000145,2]
[331061084,1720047048318,-471.4109546,0.000145,2]
[331061085,1720047048329,-627.14,0.000145,2]
[331061086,1720047048338,-500.0,0.000145,2]
[331061087,1720047048348,-500.0,0.000145,2]
[331061088,1720047048357,-500.0,0.000145,2]
[331061089,1720047048367,-6147.86,0.000145,2]
[331061090,1720047048377,-6147.86,0.000145,2]
[331061091,1720047048386,-500.0,0.000145,2]
[331061092,1720047048396,-6147.86,0.000145,2]
[331061093,1720047048406,-6147.86,0.000145,2]
[331061094,1720047048415,-6147.86,0.000145,2]
[331061095,1720047048424,-6147.86,0.000145,2]
[331061096,1720047048433,-6147.86,0.000145,2]
[331061097,1720047048442,-500.0,0.000145,2]
[331061098,1720047048452,-502.36816493,0.000145,2]
[331061099,1720047048461,-500.0,0.000145,2]
[331061100,1720047048471,-500.0,0.000145,2]
[331061101,1720047048480,-500.0,0.000145,2]
[331061102,1720047048490,-500.0,0.000145,2]
[331061103,1720047048499,-500.0,0.000145,2]
[331061104,1720047048508,-500.0,0.000145,2]
[331061105,1720047048518,-500.0,0.000145,2]
[331061106,1720047048527,-500.0,0.000145,2]
[331061107,1720047048537,-500.0,0.000145,2]
[331061108,1720047048546,-500.0,0.000145,2]
[331061109,1720047048555,-842.75,0.000145,2]
[331061110,1720047048564,-721.76,0.000145,2]
[331061111,1720047048574,-500.0,0.000145,2]
[331061112,1720047048583,-500.0,0.000145,2]
[331061113,1720047048593,-1237.48,0.000145,2]
[331061114,1720047048603,-500.0,0.000145,2]
[331061115,1720047048612,-500.0,0.000145,2]
[331061116,1720047048621,-500.0,0.000145,2]
[331061117,1720047048630,-500.0,0.000145,2]
[331061118,1720047048640,-500.0,0.000145,2]
[331061119,1720047048651,-500.0,0.000145,2]
[331061120,1720047048660,-500.0,0.000145,2]
[331061121,1720047048670,-500.0,0.000145,2]
[331061122,1720047048680,-500.0,0.000145,2]
[331061123,1720047048691,-500.0,0.000145,2]
[331061124,1720047048701,-500.0,0.000145,2]
[331061125,1720047048712,-500.0,0.000145,2]
[331061126,1720047048722,-500.0,0.000145,2]
[331061127,1720047048732,-500.0,0.000145,2]
[331061128,1720047048741,-500.0,0.000145,2]
[331061129,1720047048750,-500.0,0.000145,2]
[331061130,1720047048759,-500.0,0.000145,2]
[331061131,1720047048770,-500.0,0.000145,2]
[331061132,1720047048779,-500.0,0.000145,2]
[331061133,1720047048789,-6147.86,0.00014501,2]
[331061134,1720047048798,-6147.86,0.00014501,2]
[331061135,1720047048807,-6147.86,0.00014501,2]
[331061136,1720047048817,-6147.86,0.00014509,2]
[331061137,1720047048827,-6147.86,0.00014509,2]
[331061138,1720047048836,-6147.86,0.00014509,2]
[331061139,1720047048846,-6147.86,0.00014509,2]
[331061140,1720047048856,-6147.86,0.00014509,2]
[331061141,1720047048865,-3748.8,0.00014509,2]
[331061142,1720047048875,-500.0,0.00014509,2]
[331061143,1720047048884,-719.95,0.00014509,2]
[331061144,1720047048894,-500.0,0.00014509,2]
[331061145,1720047048905,-500.0,0.00014509,2]
[331061146,1720047048914,-500.0,0.00014509,2]
[331061147,1720047048923,-500.0,0.00014509,2]
[331061148,1720047048933,-500.0,0.00014509,2]
[331061149,1720047048943,-500.0,0.00014509,2]
[331061150,1720047048952,-622.26,0.00014509,2]
[331061151,1720047048962,-850.50929526,0.0001451,2]
[331061152,1720047048972,-500.0,0.0001451,2]
[331061153,1720047048981,-500.0,0.0001451,2]
[331061154,1720047048999,-500.0,0.0001451,2]
[331061155,1720047049012,-500.0,0.0001451,2]
[331061156,1720047049023,-617.96,0.0001451,2]
[331061157,1720047049036,-500.0,0.0001451,2]
[331061158,1720047049046,-500.0,0.0001451,2]
[331061159,1720047049056,-500.0,0.0001451,2]
[331061160,1720047049066,-500.0,0.0001451,2]
[331061161,1720047049077,-500.0,0.0001451,2]
[331061162,1720047049087,-500.0,0.0001451,2]
[331061163,1720047049096,-500.0,0.0001451,2]
[331061164,1720047049106,-797.43,0.0001451,2]
[331061165,1720047049118,-512.12401173,0.0001451,2]
[331061166,1720047049128,-500.0,0.0001451,2]
[331061167,1720047049138,-500.0,0.0001451,2]
[331061168,1720047049148,-500.0,0.0001451,2]
[331061169,1720047049157,-500.0,0.0001451,2]
[331061170,1720047049167,-500.0,0.0001451,2]
[331061171,1720047049177,-500.0,0.0001451,2]
[331061172,1720047049187,-500.0,0.0001451,2]
[331061173,1720047049196,-500.0,0.0001451,2]
[331061174,1720047049206,-500.0,0.0001451,2]
[331061175,1720047049215,-500.0,0.0001451,2]
[331061176,1720047049225,-500.0,0.0001451,2]
[331061177,1720047049234,-500.0,0.0001451,2]
[331061178,1720047049246,-500.0,0.0001451,2]
[331061179,1720047049257,-502.38411509,0.0001451,2]
[331061180,1720047049268,-500.0,0.0001451,2]
[331061181,1720047049277,-500.0,0.0001451,2]
[331061182,1720047049286,-500.0,0.0001451,2]
[331061183,1720047049297,-500.0,0.0001451,2]
[331061184,1720047049307,-500.0,0.0001451,2]
[331061185,1720047049316,-500.0,0.0001451,2]
[331061186,1720047049326,-500.0,0.0001451,2]
[331061187,1720047049336,-500.0,0.0001451,2]
[331061188,1720047049347,-238.3330964,0.0001451,2]
[331061189,1720047049358,-261.44007825,0.0001451,2]
[331061190,1720047049368,-500.0,0.0001451,2]
[331061191,1720047049379,-500.0,0.0001451,2]
[331061192,1720047049388,-500.0,0.0001451,2]
[331061193,1720047049400,-640.90668797,0.0001451,2]
[331061194,1720047049409,-500.0,0.0001451,2]
[331061195,1720047049422,-500.0,0.0001451,2]
[331061196,1720047049434,-500.0,0.0001451,2]
[331061197,1720047049444,-500.0,0.0001451,2]
[331061198,1720047049453,-500.0,0.0001451,2]
[331061199,1720047049463,-500.0,0.0001451,2]
[331061200,1720047049473,-500.0,0.0001451,2]
[331061201,1720047049483,-183.03332676,0.0001451,2]
[331061202,1720047049492,-500.72786213,0.0001451,2]
[331061203,1720047049502,-500.0,0.0001451,2]
[331061204,1720047049512,-500.0,0.0001451,2]
[331061205,1720047049522,-500.0,0.0001451,2]
[331061206,1720047049533,-500.0,0.0001451,2]
[331061207,1720047049543,-500.0,0.0001451,2]
[331061208,1720047049554,-500.0,0.0001451,2]
[331061209,1720047049565,-500.0,0.0001451,2]
[331061210,1720047049576,-503.32400149,0.0001451,2]
[331061211,1720047049588,-502.42795331,0.0001451,2]
[331061212,1720047049598,-500.0,0.0001451,2]
[331061213,1720047049607,-500.0,0.0001451,2]
[331061214,1720047049617,-500.0,0.0001451,2]
[331061215,1720047049627,-500.0,0.0001451,2]
[331061216,1720047049637,-500.0,0.0001451,2]
[331061217,1720047049648,-500.0,0.0001451,2]
[331061218,1720047049658,-500.0,0.0001451,2]
[331061219,1720047049668,-510.75786565,0.0001451,2]
[331061220,1720047049678,-500.0,0.0001451,2]
[331061221,1720047049688,-500.0,0.0001451,2]
[331061222,1720047049697,-500.0,0.0001451,2]
[331061223,1720047049707,-500.0,0.0001451,2]
[331061224,1720047049716,-153.85282266,0.0001451,2]
[331061225,1720047049725,-500.0,0.0001451,2]
[331061226,1720047049734,-500.0,0.0001451,2]
[331061227,1720047049744,-500.0,0.0001451,2]
[331061228,1720047049753,-500.0,0.0001451,2]
[331061229,1720047049762,-594.63558657,0.0001451,2]
[331061230,1720047049772,-500.0,0.0001451,2]
[331061231,1720047049781,-500.0,0.0001451,2]
[331061232,1720047049791,-500.0,0.0001451,2]
[331061233,1720047049800,-500.0,0.0001451,2]
[331061234,1720047049809,-500.0,0.0001451,2]
[331061235,1720047049819,-500.0,0.0001451,2]
[331061236,1720047049827,-306.30698272,0.0001451,2]
[331061237,1720047049837,-500.0,0.0001451,2]
[331061238,1720047049849,-500.0,0.0001451,2]
[331061239,1720047049859,-500.0,0.0001451,2]
[331061240,1720047049869,-500.0,0.0001451,2]
[331061241,1720047049878,-500.50113642,0.0001451,2]
[331061242,1720047049888,-500.0,0.0001451,2]
[331061243,1720047049898,-500.0,0.0001451,2]
[331061244,1720047049912,-500.0,0.0001451,2]
[331061245,1720047049922,-500.0,0.0001451,2]
[331061246,1720047049933,-500.0,0.0001451,2]
[331061247,1720047049943,-500.0,0.0001451,2]
[331061248,1720047049953,-500.0,0.0001451,2]
[331061249,1720047049963,-507.48581377,0.0001451,2]
[331061250,1720047049972,-500.0,0.0001451,2]
[331061251,1720047049982,-500.0,0.0001451,2]
[331061252,1720047049991,-500.0,0.0001451,2]
[331061253,1720047050001,-500.0,0.0001451,2]
[331061254,1720047050011,-500.0,0.0001451,2]
[331061255,1720047050021,-500.0,0.0001451,2]
[331061256,1720047050032,-500.0,0.0001451,2]
[331061257,1720047050042,-500.0,0.0001451,2]
[331061258,1720047050052,-500.0,0.0001451,2]
[331061259,1720047050062,-500.0,0.0001451,2]
[331061260,1720047050071,-500.0,0.0001451,2]
[331061261,1720047050080,-502.20551852,0.0001451,2]
[331061262,1720047050089,-500.0,0.0001451,2]
[331061263,1720047050099,-500.0,0.0001451,2]
[331061264,1720047050108,-500.0,0.0001451,2]
[331061265,1720047050118,-500.0,0.0001451,2]
[331061266,1720047050128,-500.0,0.0001451,2]
[331061267,1720047050137,-500.0,0.0001451,2]
[331061268,1720047050146,-500.0,0.0001451,2]
[331061269,1720047050157,-500.0,0.0001451,2]
[331061270,1720047050166,-500.0,0.0001451,2]
[331061271,1720047050175,-500.0,0.0001451,2]
[331061272,1720047050184,-500.0,0.0001451,2]
[331061273,1720047050194,-465.53454538,0.0001451,2]
[331061274,1720047050291,-34.46545462,0.0001451,2]
[331061275,1720047050300,-316.07010701,0.0001451,2]
[331061276,1720047050311,-183.92989299,0.0001451,2]
[331061277,1720047050320,-500.0,0.0001451,2]
[331061278,1720047050330,-500.0,0.0001451,2]
[331061279,1720047050339,-238.21381551,0.0001451,2]
[331061280,1720047050348,-500.0,0.0001451,2]
[331061281,1720047050358,-501.37394267,0.0001451,2]
[331061282,1720047050368,-500.0,0.0001451,2]
[331061283,1720047050377,-500.0,0.0001451,2]
[331061284,1720047050386,-500.0,0.0001451,2]
[331061285,1720047050395,-500.0,0.0001451,2]
[331061286,1720047050405,-500.0,0.0001451,2]
[331061287,1720047050415,-502.78324507,0.0001451,2]
[331061288,1720047050425,-31.71597407,0.0001451,2]
[331061289,1720047058178,500.0,0.000142,7]
[331061290,1720047058987,500.0,0.000142,7]
[331061291,1720047059735,500.0,0.000142,7]
[331061292,1720047060488,500.0,0.000142,7]
[331061293,1720047061241,500.0,0.000142,7]
[331061294,1720047062002,500.0,0.000142,7]
[331061295,1720047062748,500.0,0.000142,7]
[331061296,1720047063507,500.0,0.000142,7]
[331061297,1720047064252,500.0,0.000142,7]
[331061298,1720047065001,500.0,0.000142,7]
[331061299,1720047065872,500.0,0.000142,7]
[331061300,1720047066882,500.0,0.000142,7]
[331061301,1720047067617,441.91,0.000142,7]
[331061302,1720047133069,500.0,0.000142,7]
[331061303,1720047133831,500.0,0.000142,7]
[331061305,1720047199284,500.0,0.000142,7]
[331061308,1720047946181,-190.85974906,0.00013599,2]
[331061309,1720047946202,-204.580427,0.00013699,2]
[331061310,1720047946220,-181.82027593,0.00014,2]
[331061311,1720047946242,-186.91364064,0.000142,2]
[331061313,1720048030148,-300.0,0.00013449,2]
[331061314,1720048030168,-300.0,0.00013449,2]
[331061315,1720048030190,-337.50687397,0.0001345,2]
[331061316,1720048031111,-2831.83646381,0.0001345,2]
[331061317,1720048031144,-3016.21117805,0.0001345,2]
[331061318,1720048034125,-7560.06509177,0.0001345,2]
[331061319,1720048034145,-212.39264259,0.000142,2]
[331061320,1720048034166,-3480.70174913,0.00014388,2]
[331061321,1720048034187,-2000.0,0.0001439,2]
[331061322,1720048034207,-153.0,0.000144,2]
[331061323,1720048034228,-123.34962346,0.000144,2]
[331061324,1720048034263,-82.73405964,0.000144,2]
[331061325,1720048034282,-68.26594036,0.000144,2]
[331061326,1720048051289,-224.97687114,0.000144,2]
[331061327,1720048051311,-490.97295568,0.00014477,2]
[331061328,1720048051334,-283.35645641,0.00014478,2]
[331061331,1720048174140,-347.90513044,0.00013599,2]
[331061332,1720048174165,-268.985068,0.00013699,2]
[331061343,1720048232599,-210.41698101,0.00014468,2]
[331061344,1720048232609,-500.0,0.00014469,2]
[331061346,1720048232618,-176.84530759,0.00014469,2]
[331061348,1720048232627,-2028.8039044,0.00014469,2]
[331061350,1720048232847,-935.67306823,0.00014469,2]
[331061351,1720048232858,-9106.64612082,0.00014469,2]
[331061352,1720048232869,-1425.47275,0.00014469,2]
[331061353,1720048232880,-258.18004786,0.00014469,2]
[331061371,1720048244067,-500.0,0.00014469,2]
[331061372,1720048244076,-8610.08069432,0.00014469,2]
[331061375,1720048254392,140.35980156,0.00013599,2]
[331061376,1720048285431,150.83408251,0.00019298,30]
[331061377,1720048466149,284.50722532,9.999e-05,2]
[331061378,1720048500231,155.17810789,9.999e-05,2]
[331061379,1720048541565,2099.40710865,9.999e-05,2]
[331061380,1720048549049,14393.79605785,9.999e-05,2]
[331061381,1720048549128,3555.70101397,9.999e-05,2]
[331061382,1720048559984,292.39126666,9.999e-05,2]
[331061384,1720048675463,780.41127043,9.999e-05,2]
[331061386,1720048750002,292.46133722,9.999e-05,2]
[331061387,1720048755676,530.89739076,9.999e-05,2]
[331061388,1720048766121,292.49693665,9.999e-05,2]
[331061389,1720048775936,155.0,9.999e-05,2]
[331061390,1720048804590,2098.64128674,9.999e-05,2]
[331061391,1720048856890,309.65151136,9.999e-05,2]
[331061392,1720048891024,292.28559667,9.999e-05,2]
[331061393,1720048921028,292.28559667,9.999e-05,2]
[331061394,1720048971960,302.58982114,9.999e-05,2]
[331061395,1720048990264,250.37853644,9.999e-05,2]
[331061396,1720049007488,164.98208243,9.999e-05,2]
[331061397,1720049019872,309.6439095,9.999e-05,2]
[331061398,1720049049951,155.0,9.999e-05,2]
[331061399,1720049053735,309.65937546,0.0001,2]
[331061400,1720049059973,157.2632129,9.999e-05,2]
[331061401,1720049142117,-402.59349144,0.0001212,2]
[331061402,1720049142143,-176.28738677,0.0001212,2]
[331061403,1720049142172,-164.68030163,0.0001212,2]
[331061404,1720049142197,-51.82313681,0.0001212,2]
[331061405,1720049232643,166.22247411,9.999e-05,2]
[331061406,1720049236112,-746.33984813,0.00013311,2]
[331061407,1720049237179,-159.62149372,0.00013311,2]
[331061408,1720049240119,-562.02446707,0.00013311,2]
[331061409,1720049242111,-242.19353293,0.00013311,2]
[331061410,1720049245124,-643.16665666,0.00013311,2]
[331061411,1720049247163,-2457.42025413,0.00013311,2]
[331061412,1720049253143,-155.75056647,0.00013311,2]
[331061413,1720049277579,155.0,9.999e-05,2]
[331061414,1720049278736,173.62843894,9.999e-05,2]
[331061415,1720049295019,155.0,9.999e-05,2]
[331061416,1720049346123,-1883.60004769,0.00013311,2]